bitfinex/quotes_ETHUSD_20241101
["timestamp","ask_amount","ask_price","bid_price","bid_amount"]
[1730477938443,3.95242,2530.1,2529.8,0.07904918]
[1730477938644,3.95242,2530.1,2529.6,4.81159817]
[1730477938871,3.95242,2530.1,2529.6,0.85848817]
[1730477939181,3.95236,2530.2,2529.4,1.3977]
[1730477939182,3.95194,2530.4,2529.4,1.3977]
[1730477939399,5.24019618,2530.2,2529.3,3.95356]
[1730477939675,5.26465,2530.3,2529.5,3.95333]
[1730477939676,3.95272,2529.9,2529.5,3.95333]
[1730477939896,3.9525,2530.1,2529.5,3.95333]
[1730477940193,3.95147,2530.7,2529.9,3.9527]
[1730477940352,3.95217,2530.3,2529.8,0.07904645]
[1730477940555,3.95217,2530.3,2529.8,4.03184645]
[1730477940778,3.95279,2529.9,2529.6,2.097971]
[1730477940997,3.95279,2529.9,2529.6,1.3073]
[1730477941139,3.95295,2529.8,2529.6,1.3073]
[1730477941348,3.95295,2529.8,2529.5,0.0790574]
[1730477941349,3.95295,2529.8,2529.3,5.26085]
[1730477941654,3.95335,2529.5,2529.0,3.95412]
[1730477941855,3.95244,2530.1,2529.1,0.07906651]
[1730477942069,1.3269,2530.2,2529.1,0.07906651]
[1730477942070,2.14895871,2530.9,2529.4,5.26078]
[1730477942270,0.82205871,2531.2,2530.4,1.3073]
[1730477942456,3.95081,2531.2,2530.5,0.07902409]
[1730477942644,3.95047,2531.4,2530.8,3.95117]
[1730477942850,3.95023,2531.5,2531.0,3.95088]
[1730477943204,1.3405,2531.7,2530.8,3.95121]
[1730477943477,3.95039,2531.4,2531.0,3.95098]
[1730477943683,3.95035,2531.5,2531.1,1.2896]
[1730477943895,3.95035,2531.5,2531.1,1.36861114]
[1730477944046,3.95008,2531.6,2531.1,5.31937114]
[1730477944242,3.95002,2531.7,2531.1,5.31941128]
[1730477944446,3.94984,2531.8,2531.3,3.9505]
[1730477944642,3.95007,2531.6,2531.2,0.53194113]
[1730477944886,3.95069,2531.2,2530.8,1.2616]
[1730477945195,5.24019618,2531.5,2530.8,1.2616]
[1730477945486,3.95127,2530.9,2530.4,5.24392]
[1730477945655,3.95104,2531.0,2530.5,4.03078319]
[1730477945861,3.95007,2531.6,2530.9,3.95104]
[1730477946046,3.95007,2531.6,2530.5,0.07902319]
[1730477946047,1.3284,2531.7,2530.7,3.95143]
[1730477946247,1.3284,2531.7,2530.9,1.3181]
[1730477946248,3.95064,2531.3,2530.9,1.3181]
[1730477946750,3.9504,2531.4,2530.9,5.26918]
[1730477946984,3.9504,2531.4,2530.9,1.3181]
[1730477947290,3.95158,2530.7,2530.4,1.3355]
[1730477947444,3.95158,2530.7,2529.4,5.24019618]
[1730477947445,0.82205871,2531.6,2531.3,1.3355]
[1730477947647,3.94986,2531.8,2531.3,1.3355]
[1730477947890,0.82205871,2532.3,2531.3,1.41449704]
[1730477948045,0.82205871,2532.4,2531.7,3.94981]
[1730477948248,0.82205871,2532.5,2532.2,7.89808]
[1730477948461,0.82205871,2532.6,2532.3,0.07897149]
[1730477948689,0.82205871,2532.6,2532.0,3.94936]
[1730477948690,3.94868,2532.5,2532.0,3.94936]
[1730477948996,0.82205871,2532.6,2532.0,3.94932]
[1730477948997,3.94851,2532.6,2532.0,3.94932]
[1730477949152,3.94868,2532.5,2532.0,3.94937]
[1730477949350,3.94868,2532.5,2532.0,0.5703551]
[1730477949588,3.94808,2532.9,2532.5,3.94865]
[1730477949789,4.76986871,2533.1,2532.6,3.94843]
[1730477949994,4.76952871,2533.3,2532.7,0.07895978]
[1730477950197,2.47819071,2533.4,2532.6,1.3679]
[1730477950517,7.89505,2533.3,2532.7,3.94827]
[1730477950791,1.64911743,2533.7,2533.6,5.25785]
[1730477951014,3.94518,2534.8,2533.6,5.24019618]
[1730477951154,3.94494,2534.9,2534.0,1.3109]
[1730477951347,3.78823289,2535.6,2534.0,1.3109]
[1730477951348,3.94463,2535.1,2534.2,3.94599]
[1730477951587,3.94439,2535.3,2534.4,3.94565]
[1730477951752,5.99546526,2535.7,2534.6,1.3109]
[1730477951952,3.94406,2535.5,2534.7,0.0788972]
[1730477952196,2.05174526,2535.7,2534.9,3.94486]
[1730477952404,2.05174526,2535.7,2535.1,3.94461]
[1730477952702,2.05174526,2535.7,2535.3,3.94424]
[1730477952897,2.05174526,2535.7,2535.2,1.3109]
[1730477953116,2.05174526,2535.7,2535.4,4.02288197]
[1730477953327,2.05174526,2535.7,2535.4,4.02298197]
[1730477953468,2.05174526,2535.7,2535.6,3.94383]
[1730477954771,2.05174526,2535.7,2535.4,3.94402]
[1730477954969,2.05174526,2535.7,2535.3,4.469805]
[1730477954970,2.05174526,2535.7,2535.3,3.94419]
[1730477955211,2.05174526,2535.7,2535.4,3.94401]
[1730477956004,2.05174526,2535.7,2535.3,0.525509]
[1730477956239,2.05174526,2535.7,2535.2,5.25525]
[1730477956240,2.05174526,2535.7,2535.0,3.94465]
[1730477956515,1.3629,2535.6,2534.3,5.21399]
[1730477956697,0.34146453,2535.5,2533.9,5.21465]
[1730477956871,0.34146453,2535.5,2534.0,0.07891113]
[1730477956872,3.94533,2534.7,2534.0,0.07891113]
[1730477957074,3.94533,2534.7,2533.9,5.21465]
[1730477957272,1.311,2534.8,2534.0,3.94622]
[1730477957473,3.94535,2534.7,2533.9,1.2682]
[1730477957699,3.94551,2534.6,2533.9,1.2682]
[1730477957914,3.94558,2534.5,2533.6,3.94689]
[1730477958225,3.94596,2534.3,2533.5,1.266]
[1730477958516,0.920186,2534.6,2533.5,1.266]
[1730477958719,3.9462,2534.1,2533.5,1.266]
[1730477958875,3.94602,2534.2,2533.4,3.94718]
[1730477959073,7.89215,2534.2,2533.4,3.94718]
[1730477959334,3.94602,2534.2,2533.4,3.94715]
[1730477959487,3.94578,2534.4,2533.6,3.94685]
[1730477959688,3.94578,2534.4,2533.7,0.07892738]
[1730477960277,1.311,2534.8,2534.2,3.94599]
[1730477960622,9.52570071,2535.5,2534.0,3.9462]
[1730477960623,3.94525,2534.7,2534.0,3.9462]
[1730477960796,3.94525,2534.7,2533.8,5.22657]
[1730477960797,5.24019618,2535.1,2533.8,5.22651]
[1730477960978,5.24019618,2535.1,2533.8,1.28]
[1730477960979,3.94582,2534.4,2533.8,1.28]
[1730477961327,3.9457,2534.4,2533.4,1.28]
[1730477961529,2.11293,2534.4,2533.4,1.28]
[1730477961822,3.94596,2534.3,2533.6,3.94682]
[1730477961994,3.94602,2534.2,2533.7,0.07892622]
[1730477962312,5.24019618,2534.7,2533.7,0.07892622]
[1730477962632,3.94641,2534.0,2533.4,1.28]
[1730477962926,8.24019618,2535.2,2533.8,3.94659]
[1730477963115,3.94575,2534.4,2533.8,3.94659]
[1730477963299,3.94575,2534.4,2533.6,3.94695]
[1730477963515,3.94588,2534.3,2533.6,3.94686]
[1730477963813,3.94605,2534.2,2533.6,3.94686]
[1730477964021,3.94603,2534.2,2533.5,3.94701]
[1730477964311,5.26908,2534.7,2533.8,3.94652]
[1730477964312,5.26906,2534.7,2533.8,3.94652]
[1730477964539,3.94526,2534.7,2534.0,3.94623]
[1730477964739,3.94568,2534.5,2533.8,3.94656]
[1730477964910,3.94568,2534.5,2533.9,3.94645]
[1730477965234,3.94533,2534.7,2533.8,3.94656]
[1730477965455,5.2885,2535.1,2534.2,3.94594]
[1730477965601,3.94493,2534.9,2534.3,4.02473677]
[1730477965801,5.2885,2535.1,2534.0,1.3115]
[1730477965802,3.94556,2534.5,2534.0,1.3115]
[1730477966898,3.94565,2534.5,2533.8,3.94662]
[1730477967097,3.94508,2534.8,2533.6,1.3623]
[1730477967098,3.94602,2534.2,2533.6,1.3623]
[1730477967338,3.94657,2533.9,2533.2,5.27553]
[1730477967861,8.286792,2534.2,2533.4,3.94716]
[1730477968003,3.9462,2534.1,2533.5,4.02593987]
[1730477968204,5.29395,2534.7,2533.9,3.9464]
[1730477968415,3.94565,2534.5,2533.9,3.9464]
[1730477968639,3.94477,2535.0,2534.0,1.3281]
[1730477968958,1.3487,2535.3,2534.1,0.07891344]
[1730477969102,3.94477,2535.0,2534.4,3.9456]
[1730477969503,3.94478,2535.0,2534.5,0.07890321]
[1730477969748,3.94478,2535.0,2534.4,7.8912]
[1730477969925,3.94461,2535.1,2534.6,3.94535]
[1730477970249,7.88789,2535.6,2534.8,5.31516]
[1730477970429,3.94341,2535.9,2535.2,3.94435]
[1730477970638,3.94341,2535.9,2535.3,3.9442]
[1730477970838,3.94322,2536.0,2535.2,3.94445]
[1730477971139,3.94322,2536.0,2535.4,3.94414]
[1730477971516,3.94339,2535.9,2535.4,3.94414]
[1730477971722,3.94339,2535.9,2535.2,3.94436]
[1730477971917,3.94277,2536.3,2534.8,1.3701]
[1730477971918,0.1232417,2536.5,2535.4,1.3773]
[1730477972249,4.0657517,2536.5,2535.7,3.94367]
[1730477972451,3.94285,2536.3,2535.6,3.9438]
[1730477972738,0.1232417,2536.5,2535.8,3.94342]
[1730477972942,0.1232417,2536.5,2536.1,3.94297]
[1730477973161,0.1232417,2536.5,2536.3,3.94261]
[1730477973352,0.1232417,2536.5,2536.2,3.9429]
[1730477973752,0.1232417,2536.5,2536.3,3.94274]
[1730477973961,0.1232417,2536.5,2536.2,3.94281]
[1730477974160,0.1232417,2536.5,2536.4,3.94259]
[1730477974349,0.1232417,2536.5,2536.3,3.94274]
[1730477974544,0.1232417,2536.5,2536.3,3.94267]
[1730477974765,0.1232417,2536.5,2536.1,5.32026]
[1730477974969,0.1232417,2536.5,2536.3,3.94261]
[1730477975121,0.1232417,2536.5,2536.4,4.0214322]
[1730477975327,0.1232417,2536.5,2536.4,3.94259]
[1730477975526,5.29338,2538.5,2537.4,3.94095]
[1730477975843,5.29338,2538.5,2537.6,3.94063]
[1730477975844,5.93545705,2538.3,2537.6,3.94063]
[1730477976044,5.93545705,2538.3,2537.2,1.3611]
[1730477976045,2.53238683,2538.3,2537.4,3.94099]
[1730477976258,2.53238683,2538.3,2537.9,3.94023]
[1730477976259,1.99573705,2538.3,2537.9,3.94023]
[1730477976568,1.99573705,2538.3,2538.0,3.94002]
[1730477977083,1.99573705,2538.3,2537.8,3.94031]
[1730477977380,1.99573705,2538.3,2538.1,5.32684]
[1730477977521,1.69573705,2538.3,2538.1,1.387]
[1730477977722,1.69573705,2538.3,2538.1,5.3269]
[1730477977919,1.69573705,2538.3,2538.2,3.93979]
[1730477978249,1.69573705,2538.3,2537.9,3.9402]
[1730477978432,1.69573705,2538.3,2537.7,5.32747]
[1730477978433,5.63551705,2538.3,2537.7,5.32747]
[1730477978635,1.69573705,2538.3,2537.7,5.32747]
[1730477978944,1.69573705,2538.3,2537.7,1.387]
[1730477979154,1.69573705,2538.3,2538.2,3.93979]
[1730477979544,1.69573705,2538.3,2538.1,3.93986]
[1730477979743,1.69573705,2538.3,2537.9,3.94018]
[1730477979947,1.69573705,2538.3,2537.9,7.88035]
[1730477980155,1.69573705,2538.3,2537.9,3.94017]
[1730477980362,1.69573705,2538.3,2537.7,5.32748]
[1730477980670,1.69573705,2538.3,2537.7,1.387]
[1730477980873,3.94042,2537.8,2537.2,1.3749]
[1730477981158,3.94135,2537.2,2536.4,3.94257]
[1730477981362,5.21837,2537.4,2536.2,1.3115]
[1730477981668,3.94206,2536.8,2536.2,1.3115]
[1730477981817,7.88388,2536.9,2536.2,5.2543]
[1730477982024,3.94155,2537.1,2536.2,1.3115]
[1730477982268,3.94155,2537.1,2536.3,3.94273]
[1730477982760,3.94155,2537.1,2536.2,1.836947]
[1730477982761,3.94128,2537.3,2536.5,3.94244]
[1730477982949,3.94053,2537.8,2536.8,1.3972]
[1730477983158,3.94053,2537.8,2536.2,4.468267]
[1730477983159,1.297,2537.5,2536.4,5.24019618]
[1730477983468,1.297,2537.5,2536.4,1.3159]
[1730477983469,3.94167,2537.0,2536.4,1.3159]
[1730477983668,7.88342,2537.0,2536.5,0.07884069]
[1730477983854,0.523773,2537.4,2536.4,1.3159]
[1730477983855,3.94197,2536.8,2536.4,1.3159]
[1730477984177,3.94195,2536.9,2536.4,1.3159]
[1730477984338,3.94195,2536.9,2536.4,1.39474259]
[1730477984534,3.94195,2536.9,2536.2,3.94281]
[1730477984835,3.9423,2536.6,2536.0,5.25897]
[1730477985040,0.394195,2536.9,2536.0,1.3159]
[1730477985365,3.94277,2536.3,2535.6,5.2596]
[1730477985568,3.94268,2536.4,2535.7,3.94355]
[1730477985777,7.88503,2536.5,2535.9,3.94336]
[1730477986064,7.88503,2536.5,2535.7,3.94354]
[1730477986065,3.94268,2536.4,2535.7,3.94354]
[1730477986226,3.94249,2536.5,2535.9,3.94335]
[1730477986428,5.2415,2536.7,2536.0,0.07885633]
[1730477986666,3.94263,2536.4,2535.9,3.94328]
[1730477986965,3.94284,2536.3,2535.8,0.525944]
[1730477987212,7.88572,2536.3,2535.8,0.525944]
[1730477987515,3.94262,2536.4,2535.8,4.469314]
[1730477987853,3.94286,2536.3,2535.7,3.94366]
[1730477988058,3.94286,2536.3,2535.6,5.25968]
[1730477988059,3.94286,2536.3,2535.8,3.94352]
[1730477988296,3.94286,2536.3,2535.6,5.25968]
[1730477988496,3.94331,2536.0,2535.3,3.94418]
[1730477988682,3.94316,2536.1,2535.4,3.94403]
[1730477988893,3.94272,2536.4,2535.5,0.07887194]
[1730477989101,3.94288,2536.3,2535.6,3.94373]
[1730477989463,3.94288,2536.3,2535.1,5.29247]
[1730477989464,3.94332,2536.0,2535.2,0.07886581]
[1730477989669,3.94325,2536.0,2535.2,4.02324581]
[1730477990015,3.94356,2535.8,2535.2,3.94438]
[1730477990180,3.94353,2535.8,2535.2,3.94438]
[1730477990380,0.788678,2535.8,2535.1,1.3479]
[1730477990613,3.94445,2535.3,2534.7,1.3479]
[1730477990905,3.94406,2535.5,2534.8,3.94497]
[1730477991077,3.94406,2535.5,2534.7,1.42679751]
[1730477991078,5.24019618,2536.0,2534.7,1.42679751]
[1730477991278,3.94278,2536.3,2534.5,3.94551]
[1730477991279,3.94462,2535.1,2534.5,3.94551]
[1730477991492,5.24019618,2535.6,2534.6,0.07889916]
[1730477991697,3.94439,2535.3,2534.7,7.89027]
[1730477991906,3.94439,2535.3,2534.5,3.9455]
[1730477992108,3.94463,2535.1,2534.5,3.94546]
[1730477992311,3.94439,2535.3,2534.7,3.9451]
[1730477992611,3.94399,2535.5,2534.3,1.3502]
[1730477992811,3.94399,2535.5,2534.2,3.94591]
[1730477992812,3.94517,2534.8,2534.2,3.94591]
[1730477993108,3.94517,2534.8,2534.1,3.94609]
[1730477993109,3.94494,2534.9,2534.3,3.94575]
[1730477993318,3.9436,2535.8,2534.8,1.3749]
[1730477993512,3.9436,2535.8,2535.1,3.94452]
[1730477993722,3.94291,2536.2,2535.6,3.94371]
[1730477993884,3.94291,2536.2,2535.6,7.88746]
[1730477994225,3.94292,2536.2,2535.5,3.94399]
[1730477994369,3.94306,2536.1,2535.6,3.94378]
[1730477994631,3.94306,2536.1,2535.5,3.94399]
[1730477994811,3.94306,2536.1,2535.6,3.94382]
[1730477995112,5.29658,2536.3,2535.8,3.9434]
[1730477995312,1.3538,2536.3,2535.8,7.88684]
[1730477995523,3.94292,2536.2,2535.7,3.94359]
[1730477995674,3.94292,2536.2,2535.6,7.88746]
[1730477996016,1.3538,2536.3,2535.7,3.94367]
[1730477996217,3.943,2536.2,2535.6,3.94383]
[1730477996569,3.943,2536.2,2535.7,3.94368]
[1730477997179,1.3538,2536.3,2535.6,7.88758]
[1730477997367,3.9429,2536.2,2535.7,3.94359]
[1730477997568,1.3538,2536.3,2535.5,0.78882]
[1730477997891,3.94268,2536.4,2535.7,3.94359]
[1730477998072,3.94297,2536.2,2535.6,3.94383]
[1730477998272,3.9423,2536.6,2535.8,3.94338]
[1730477998499,9.18138618,2537.3,2536.2,3.9428]
[1730477998500,5.33505,2536.8,2536.2,3.9428]
[1730477998724,1.393,2536.8,2535.5,1.328]
[1730477999004,3.94108,2537.4,2536.3,1.328]
[1730477999229,5.33376,2537.6,2537.0,3.94158]
[1730477999543,1.393,2537.6,2537.1,3.9414]
[1730477999728,3.94092,2537.5,2537.0,3.94157]
[1730477999931,5.33375,2537.6,2537.0,3.94157]
[1730478000128,5.33375,2537.6,2537.0,7.88309]
[1730478000307,3.94051,2537.8,2537.0,7.88309]
[1730478000308,3.94051,2537.8,2537.3,3.94119]
[1730478000508,3.94051,2537.8,2537.0,0.788309]
[1730478000509,5.30419,2538.0,2537.0,0.788309]
[1730478000837,5.30419,2538.0,2537.2,3.94135]
[1730478000838,3.9405,2537.8,2537.2,3.94135]
[1730478001150,3.94138,2537.2,2536.7,3.94208]
[1730478001439,1.396,2537.4,2536.6,3.94219]
[1730478001650,1.396,2537.4,2536.5,3.9423]
[1730478001651,3.94136,2537.2,2536.5,3.9423]
[1730478001829,3.94136,2537.2,2536.6,3.94219]
[1730478002176,3.94159,2537.1,2536.5,7.88466]
[1730478002352,3.94185,2536.9,2536.4,3.94259]
[1730478002642,3.94185,2536.9,2536.4,3.94249]
[1730478002840,3.94166,2537.0,2536.5,3.94243]
[1730478003156,3.94161,2537.1,2536.2,3.94279]
[1730478003157,3.9415,2537.1,2536.2,3.94279]
[1730478003320,3.9429,2536.3,2535.7,7.8872]
[1730478003501,3.94253,2536.5,2536.0,3.94309]
[1730478003825,3.94268,2536.4,2535.8,3.94344]
[1730478004241,3.94268,2536.4,2535.4,1.2978]
[1730478004242,3.94221,2536.7,2536.0,3.94312]
[1730478004408,5.1854636,2537.0,2535.4,5.24186]
[1730478004409,3.94274,2536.4,2535.4,5.24186]
[1730478004610,3.94246,2536.5,2536.0,3.94319]
[1730478004822,5.24019618,2536.9,2535.5,0.524186]
[1730478005116,3.94253,2536.5,2536.0,3.94315]
[1730478005523,3.94253,2536.5,2535.8,3.9435]
[1730478005524,3.94274,2536.4,2535.8,3.9435]
[1730478005736,3.94274,2536.4,2535.9,3.94327]
[1730478005950,3.94224,2536.7,2535.2,3.94437]
[1730478005951,3.9429,2536.2,2535.2,3.94437]
[1730478006152,1.2687,2536.3,2535.1,3.94461]
[1730478006153,7.88758,2535.7,2535.1,3.94461]
[1730478006351,3.94399,2535.5,2534.9,3.94488]
[1730478006567,3.94399,2535.5,2534.6,3.94529]
[1730478006747,1.2687,2535.6,2535.0,3.94468]
[1730478006928,3.94439,2535.3,2534.8,3.94497]
[1730478007870,3.94409,2535.5,2534.7,0.07889401]
[1730478008083,3.9444,2535.3,2534.8,3.94508]
[1730478008262,3.94407,2535.5,2534.9,3.94484]
[1730478008263,3.94415,2535.4,2534.9,3.94484]
[1730478008430,3.94434,2535.3,2534.8,3.94498]
[1730478008625,3.94415,2535.4,2534.8,3.94493]
[1730478008827,3.94352,2535.8,2535.2,3.94437]
[1730478009027,3.94354,2535.8,2534.9,1.3535]
[1730478009330,3.9443,2535.3,2534.8,0.48126762]
[1730478009578,3.94408,2535.5,2535.0,3.94469]
[1730478009754,3.94379,2535.7,2535.0,3.94468]
[1730478009939,3.94379,2535.7,2535.2,3.94443]
[1730478010274,3.94378,2535.7,2535.1,0.4733533]
[1730478010474,3.94378,2535.7,2535.0,3.94466]
[1730478010627,3.94368,2535.7,2534.7,4.02412251]
[1730478010831,3.94368,2535.7,2534.7,4.02404251]
[1730478010832,3.94454,2535.2,2534.7,4.02404251]
[1730478011223,3.94465,2535.1,2534.5,5.28985]
[1730478011429,3.94465,2535.1,2534.5,9.2353]
[1730478011663,3.94454,2535.2,2534.6,3.9453]
[1730478011976,3.94465,2535.1,2534.6,3.9453]
[1730478012273,3.94454,2535.2,2534.5,1.3444]
[1730478012425,3.94395,2535.6,2534.6,0.07889721]
[1730478012627,3.94423,2535.4,2534.8,7.88989]
[1730478012871,3.94383,2535.6,2534.9,0.07888914]
[1730478013037,1.3905,2535.7,2535.0,3.94477]
[1730478013225,3.944,2535.5,2534.9,0.07888914]
[1730478013431,3.94383,2535.6,2535.0,3.94474]
[1730478013680,5.3338,2536.0,2535.5,3.94396]
[1730478013827,7.88605,2536.2,2535.5,3.94389]
[1730478014028,1.93071004,2536.3,2535.6,3.94376]
[1730478014245,1.93071004,2536.3,2535.4,4.02289012]
[1730478014246,5.25623,2536.3,2535.4,4.02289012]
[1730478014431,3.94354,2535.8,2535.3,5.24619]
[1730478014747,6.30581262,2536.3,2535.0,1.3245]
[1730478014748,2.36304262,2536.3,2535.0,1.3245]
[1730478014967,5.24019618,2536.1,2534.9,3.94481]
[1730478015162,5.24019618,2536.1,2534.8,3.94494]
[1730478015163,3.94439,2535.3,2534.8,3.94494]
[1730478015476,3.94439,2535.3,2534.8,0.07888649]
[1730478015632,3.94415,2535.4,2534.8,0.07888649]
[1730478015971,3.94337,2535.9,2534.8,0.07888649]
[1730478016131,3.94454,2535.2,2534.7,3.94521]
[1730478016332,1.3698,2535.7,2534.6,0.07889369]
[1730478016333,3.94469,2535.1,2534.6,4.02428369]
[1730478016779,3.94469,2535.1,2534.6,0.07889369]
[1730478017091,3.94492,2534.9,2534.0,1.3135]
[1730478017232,3.94562,2534.5,2534.0,9.2061]
[1730478017579,3.94472,2535.1,2534.6,3.94537]
[1730478017740,3.94477,2535.0,2534.5,7.89098]
[1730478017936,1.3698,2535.4,2534.1,3.94615]
[1730478017937,3.94447,2535.2,2534.6,0.07890392]
[1730478018171,3.9443,2535.3,2534.4,3.94558]
[1730478018377,3.9443,2535.3,2534.2,3.9459]
[1730478018567,0.53141,2535.2,2534.0,2.23411]
[1730478018761,3.94516,2534.8,2534.2,3.94586]
[1730478018963,3.94531,2534.7,2534.2,3.94586]
[1730478019353,3.94495,2534.9,2534.3,3.94575]
[1730478019582,3.94495,2534.9,2534.4,4.02453589]
[1730478019739,3.94509,2534.8,2534.4,0.07890589]
[1730478019939,3.94495,2534.9,2534.4,4.0245159]
[1730478020178,3.94519,2534.8,2534.4,0.0789059]
[1730478020352,3.94519,2534.8,2534.3,3.94575]
[1730478020540,3.94519,2534.8,2534.4,3.94569]
[1730478020735,3.94487,2535.0,2534.5,3.94552]
[1730478020965,3.94487,2535.0,2534.4,0.07890596]
[1730478021170,3.94446,2535.2,2534.0,5.25981]
[1730478021349,5.24019618,2535.3,2534.0,5.25981]
[1730478021350,3.94545,2534.6,2534.1,3.94614]
[1730478021550,3.94556,2534.5,2534.1,4.8746266]
[1730478022068,3.94573,2534.4,2534.1,0.9284866]
[1730478022239,3.94573,2534.4,2534.0,1.3135]
[1730478022440,3.94556,2534.5,2534.0,5.25971]
[1730478022678,3.94534,2534.7,2534.0,5.25971]
[1730478022679,3.94497,2534.9,2534.4,3.94561]
[1730478022881,3.94472,2535.1,2534.5,3.94542]
[1730478023037,3.94472,2535.1,2534.5,7.89087]
[1730478023243,1.2693,2535.2,2534.3,3.94574]
[1730478023443,3.94547,2534.6,2534.0,1.3135]
[1730478023688,3.94493,2534.9,2534.0,1.3135]
[1730478023871,3.94591,2534.3,2534.0,1.3135]
[1730478024070,5.30159,2534.6,2533.7,1.3416]
[1730478024273,3.94663,2533.9,2533.4,1.3416]
[1730478024445,3.94634,2534.0,2533.5,3.94698]
[1730478024649,3.94634,2534.0,2533.4,1.3416]
[1730478024650,3.9458,2534.4,2533.6,0.528858]
[1730478024864,3.94602,2534.2,2533.7,3.9467]
[1730478025075,3.94619,2534.1,2533.7,3.9467]
[1730478025249,3.94602,2534.2,2533.7,3.9467]
[1730478025445,3.94633,2534.0,2533.4,1.3416]
[1730478025775,3.94751,2533.3,2532.8,1.3416]
[1730478025975,3.9477,2533.2,2532.8,1.3416]
[1730478026446,7.89536,2533.2,2532.8,1.3416]
[1730478026771,1.3562,2534.0,2533.2,3.94756]
[1730478026973,3.94693,2533.7,2533.2,7.89505]
[1730478027302,3.94666,2533.8,2533.3,3.9474]
[1730478027455,5.30263,2534.0,2532.8,6.213605]
[1730478027456,3.94682,2533.7,2532.8,2.265425]
[1730478027657,3.94702,2533.6,2533.1,3.94771]
[1730478027856,3.94702,2533.6,2533.2,0.394771]
[1730478028060,3.94676,2533.8,2533.2,4.342331]
[1730478028263,3.94676,2533.8,2533.3,3.94732]
[1730478028264,3.94673,2533.8,2533.3,3.94732]
[1730478028646,3.94696,2533.6,2533.2,0.394771]
[1730478028867,3.94696,2533.6,2532.9,3.94793]
[1730478028868,3.94733,2533.4,2532.9,3.94793]
[1730478029247,9.18636618,2534.1,2531.9,7.23155568]
[1730478029248,3.94683,2533.7,2532.5,5.27026]
[1730478029482,3.94788,2533.1,2532.6,3.94848]
[1730478029693,7.89567,2533.1,2532.6,3.94848]
[1730478029880,1.2971,2533.4,2532.5,1.3217]
[1730478030081,5.24437,2533.4,2532.9,3.94795]
[1730478030250,5.24437,2533.4,2532.9,0.789621]
[1730478030451,3.94766,2533.2,2532.7,3.94832]
[1730478030650,3.94766,2533.2,2532.5,1.3217]
[1730478030651,3.94796,2533.0,2532.5,5.27035]
[1730478030879,3.94796,2533.0,2532.5,1.3217]
[1730478031081,3.94796,2533.0,2532.5,5.27025]
[1730478031800,3.94814,2532.9,2532.5,1.3217]
[1730478032089,5.24442,2533.4,2532.6,0.06858271]
[1730478032090,1.2971,2533.4,2532.6,0.06858271]
[1730478032248,5.34255,2532.7,2532.6,0.06858271]
[1730478032449,5.34255,2532.7,2531.9,0.4122095]
[1730478032450,3.94899,2532.3,2531.9,0.4122095]
[1730478032648,3.9493,2532.1,2531.9,0.4122095]
[1730478033198,3.94878,2532.5,2531.9,0.4122095]
[1730478033351,3.94878,2532.5,2531.9,4.3616795]
[1730478033552,1.3942,2533.1,2532.1,3.94929]
[1730478033797,3.94796,2533.0,2532.2,0.07897027]
[1730478033964,3.94796,2533.0,2532.0,1.82056795]
[1730478033965,1.3942,2533.1,2532.0,1.82056795]
[1730478034169,3.94799,2533.0,2532.2,3.949]
[1730478034352,3.94799,2533.0,2532.1,3.94929]
[1730478034353,3.94828,2532.8,2532.1,3.94929]
[1730478034558,5.34197,2533.1,2532.0,1.3744]
[1730478034766,3.94853,2532.6,2532.0,1.3744]
[1730478035066,3.94853,2532.6,2531.9,0.4122095]
[1730478035067,3.9488,2532.5,2532.1,0.06479617]
[1730478035263,5.30945,2532.4,2532.1,0.06479617]
[1730478035602,1.3606,2532.4,2531.9,0.4122095]
[1730478035761,1.3606,2532.4,2532.2,0.06466822]
[1730478035974,7.89662,2532.8,2532.3,3.94897]
[1730478035975,1.2742,2532.8,2532.3,3.94897]
[1730478036173,1.2742,2532.8,2532.4,3.94871]
[1730478036388,1.2742,2532.8,2532.5,3.94866]
[1730478036561,1.2742,2532.8,2532.6,0.06415652]
[1730478036762,3.94655,2533.9,2532.3,8.292747]
[1730478036763,1.3791,2533.2,2532.5,3.94866]
[1730478036963,1.3791,2533.2,2532.6,4.01266652]
[1730478037268,1.3791,2533.2,2532.8,3.94811]
[1730478037496,5.32676,2533.2,2532.6,7.96108652]
[1730478037811,5.32676,2533.2,2532.5,1.3007]
[1730478037812,1.3791,2533.2,2532.5,1.3007]
[1730478037962,3.94781,2533.1,2532.6,3.9485]
[1730478038166,1.3791,2533.2,2532.6,4.01265652]
[1730478038399,5.32667,2533.2,2532.6,4.01265652]
[1730478038565,5.32667,2533.2,2532.6,7.96108652]
[1730478039099,3.94776,2533.1,2532.6,0.06415652]
[1730478039475,3.94819,2532.9,2532.2,1.3007]
[1730478039691,3.94819,2532.9,2532.7,0.06402862]
[1730478039900,3.94813,2532.9,2532.3,3.94897]
[1730478040066,4.480526,2533.1,2532.8,0.06390073]
[1730478040266,4.480526,2533.1,2532.5,3.94857]
[1730478040267,3.94789,2533.0,2532.5,3.94857]
[1730478040468,3.94789,2533.0,2532.9,0.06377285]
[1730478040709,3.94804,2532.9,2532.3,7.89777]
[1730478041070,3.94804,2532.9,2532.4,3.94879]
[1730478041270,3.94877,2532.5,2532.0,3.94943]
[1730478041470,3.94909,2532.3,2531.9,0.4122095]
[1730478041707,3.94878,2532.5,2531.9,0.4122095]
[1730478042014,6.63429618,2532.9,2531.9,4.44069561]
[1730478042015,1.3941,2532.9,2531.9,4.44069561]
[1730478042196,1.3941,2533.3,2532.6,3.9485]
[1730478042403,3.94773,2533.1,2532.6,3.9485]
[1730478042608,7.89556,2533.1,2532.6,3.9485]